Cogmind - Beta 13 @@@ ROGUE MODE // 2024.04.01 @ 10:34:09 Player: alphamind Result: Destroyed by B-36 Bruiser with Hammer Performance ------------- Evolutions (1) 500 Regions Visited (3) 600 Robots Destroyed (26) 130 Value Destroyed (599) 599 Prototype IDs (3) 60 Alien Tech Used (0) 0 Bonus (0) 0 TOTAL SCORE: 1889 Bonus ------- None Cogmind --------- Core Integrity 0/400 Matter 285/300 Energy 100/100 System Corruption 27% Temperature Cool (15) Movement Core (50) Location -9/Materials Parts ------- > --- POWER (1) -------- (None) > --- PROPULSION (3) --- (None) > --- UTILITY (3) ------ (None) > --- WEAPON (2) ------- (None) > --- INVENTORY (5) ---- Ion Engine Huge Storage Unit Seismic Detector High-powered Tractor Beam Sensor Drone Bay (20/20) Peak State ------------ > --- POWER ------------ Ion Engine > --- PROPULSION ------- Aluminum Leg Aluminum Leg Aluminum Leg > --- UTILITY ---------- Medium Storage Unit Terrain Scan Processor Sensor Drone Bay > --- WEAPON ----------- EM Pulse Gun Particle Gun > --- INVENTORY -------- Ion Engine Small Storage Unit Huge Storage Unit Large Battery High-capacity Battery Terrain Scanner Seismic Detector High-powered Tractor Beam EM Pulse Gun [Rating: 19] Favorites ----------- Power Ion Engine Engine Ion Engine Propulsion Aluminum Leg Leg Aluminum Leg Utility Terrain Scan Processor Device Terrain Scanner Storage Medium Storage Unit Processor Terrain Scan Processor Weapon EM Pulse Gun Energy Gun EM Pulse Gun Ballistic Gun Assault Rifle Special Weapon Mining Laser Impact Weapon Flail Build | -11 -10 -10 -9 ------- Run | Yrd Mat Min Mat Slots Evolved 2 | . . . 2 Power . | . . . . Propulsion 1 | . . . 1 Utility 1 | . . . 1 Weapon . | . . . . Parts Attached 39 | 5 20 4 10 Power 4 | 1 3 . . Engine 4 | 1 3 . . Core . | . . . . Reactor . | . . . . Propulsion 6 | 2 2 . 2 Treads . | . . . . Leg 6 | 2 2 . 2 Wheel . | . . . . Hover . | . . . . Flight . | . . . . Utility 13 | . 7 4 2 Device 6 | . 3 1 2 Storage 6 | . 3 3 . Processor 1 | . 1 . . Hackware . | . . . . Protection . | . . . . Artifact . | . . . . Weapon 16 | 2 8 . 6 Energy Gun 10 | 2 5 . 3 Energy Cannon . | . . . . Ballistic Gun 1 | . 1 . . Ballistic Cannon . | . . . . Launcher . | . . . . Special Weapon 3 | . 2 . 1 Impact Weapon 2 | . . . 2 Slashing Weapon . | . . . . Piercing Weapon . | . . . . Special Melee Weapon . | . . . . Unidentified Prototypes 1 | . . 1 . Corrupted Parts 2 | . 2 . . System Corruption 2 | . 2 . . Parts Lost 19 | . 7 . 12 Power 3 | . 2 . 1 Propulsion 4 | . 1 . 3 Utility 3 | . . . 3 Weapon 9 | . 4 . 5 Highest Loss Streak 12 | . 4 . 12 To Critical Strikes 3 | . . . 3 Average Slot Usage (%) 94 | . 95 100 69 Engine 12 | . 13 14 7 Leg 27 | . 27 28 23 Device 4 | . 7 . 6 Storage 9 | . 6 13 8 Processor 12 | . 13 14 7 Energy Gun 23 | . 22 28 13 Special Weapon 1 | . 2 . . Naked Turns 16 | . . . 16 Heaviest Build 34 | 7 20 20 34 Greatest Support 30 | 20 20 20 30 Greatest Overweight (x) 1 | . 1 . 1 Average Overweight (x) . | . . . . Largest Inventory Capacity 25 | 5 10 25 10 Average Capacity 8 | 5 6 10 9 Most Carried 10 | 3 10 10 10 Average Carried 6 | 1 5 9 7 Final Capacity 10 | 5 10 10 5 Final Carried 10 | 1 8 10 5 Class Distribution -------------------- 69% | Scavenger-Mutant 30% | Mutant Dominant Class ---------------- Scavenger-Mutant | -10/Materials Scavenger-Mutant | -10/Mines Scavenger-Mutant | -9/Materials Resources | -11 -10 -10 -9 ----------- Run | Yrd Mat Min Mat Matter Collected 677 | 239 308 65 65 Remotely . | . . . . Salvage Created 834 | 57 675 . 102 Parts 44 | 2 39 . 3 Haulers Intercepted 2 | . 2 . . Recyclers Shooed 1 | . . . 1 Parts Field Recycled . | . . . . Retrieved Matter . | . . . . Parts Self-Destructed . | . . . . Prevented . | . . . . Kills | -11 -10 -10 -9 ------- Run | Yrd Mat Min Mat Combat Hostiles Destroyed 17 | 1 14 . 2 Guns 14 | 1 11 . 2 Cannons 1 | . 1 . . AOE 2 | . 2 . . Classes Destroyed 7 | 2 4 . 1 Worker 4 | 1 3 . . Builder 1 | . 1 . . Hauler 2 | . 2 . . Watcher 2 | . 2 . . Swarmer 3 | . 3 . . Grunt 13 | 1 11 . 1 Brawler 1 | . . . 1 Best Kill Streak 5 | 1 5 . 2 Combat Bots Only 4 | 1 4 . 2 Max Kills in Single Turn 2 | 1 2 . 1 Gunslinging . | . . . . Exploded 2 | . 2 . . Melee . | . . . . Uniques/NPCs Destroyed . | . . . . Combat | -11 -10 -10 -9 -------- Run | Yrd Mat Min Mat Hostile Shots Fired 162 | 4 73 3 82 Missed 39 | . 14 . 25 Damage Taken 1692 | 47 760 35 850 Core 625 | . 217 . 408 Absorbed by Shields . | . . . . Regen/Repaired (Parts) 43 | . . . 43 Core Remaining (%) 56 | 100 . 13 . Volleys Fired 76 | 6 54 2 14 Largest 2 | 2 2 2 2 Hottest 140 | 80 140 105 105 Shots Fired 141 | 12 97 4 28 Gun 127 | 12 87 4 24 Cannon . | . . . . Launcher . | . . . . Special 14 | . 10 . 4 Kinetic 10 | . 10 . . Thermal 46 | . 30 2 14 Explosive . | . . . . Electromagnetic 85 | 12 57 2 14 Robot Hit Streak 9 | 3 9 6 5 Robot Miss Streak 6 | 2 6 2 3 Penetration Max . | . . . . Secondary Targets 1 | . . . 1 Max Gunslinging Chain 1 | . . . 1 Shots Hit Robots 86 | 6 59 2 19 Core Hits 44 | 5 29 1 9 Critical Kills . | . . . . Critical Parts Destroyed . | . . . . Critical Strikes 4 | 1 2 . 1 Burn 1 | . 1 . . Corrupt 3 | 1 1 . 1 Melee Attacks . | . . . . Impact . | . . . . Slashing . | . . . . Piercing . | . . . . Sneak Attacks . | . . . . Combat Hostiles . | . . . . Follow-up Attacks . | . . . . Damage Inflicted 1496 | 87 975 48 386 Guns 1120 | 77 766 30 247 Cannons . | . . . . Explosions 212 | . 111 . 101 Melee . | . . . . Ramming 57 | 10 2 18 27 Kinetic 114 | . 114 . . Thermal 607 | . 356 18 233 Explosive . | . . . . Electromagnetic 718 | 77 503 12 126 Impact . | . . . . Slashing . | . . . . Piercing . | . . . . Highest Corruption 27 | . 3 3 27 Average Corruption 3 | . 2 3 19 Corruption Purged . | . . . . Corruption Blocked . | . . . . Effects 32 | . 14 16 2 Message Errors 10 | . 4 5 1 Matter Fused 9 | . 4 5 . Heat Flow Errors 4 | . 2 2 . Energy Discharges 3 | . 1 1 1 Parts Rejected 1 | . 1 . . Data Loss (minor) 2 | . 1 1 . Data Loss (major) 2 | . . 2 . Alerts 1 | . 1 . . Overload Shots . | . . . . Overflow Damage 21 | . 21 . . Projectiles . | . . . . Explosions 21 | . 21 . . Melee . | . . . . Knockbacks 2 | . . 2 . Impact 2 | . . 2 . Kinetic . | . . . . Secondary . | . . . . Self-Inflicted Damage 80 | . 36 . 44 Shots 2 | . 1 . 1 Rammed 5 | . . . 5 Targets Rammed 18 | 4 2 3 9 Kicked 13 | 4 2 3 4 Crushed . | . . . . Highest Temperature 431 | 78 247 210 431 Average Temperature 87 | 36 63 81 224 Received Heat Transfer 585 | 24 342 21 198 Effects 6 | . . . 6 Shutdowns 1 | . . . 1 Matter Decay 1 | . . . 1 Damage (major) 4 | . . . 4 Siege Activations . | . . . . Robots Corrupted . | . . . . Combat Hostiles . | . . . . Parts Fried 3 | 1 2 . . Impact Corruptions . | . . . . Robots Melted . | . . . . Combat Hostiles . | . . . . Parts Melted 1 | . 1 . . Heat Transferred 1214 | . 694 37 483 Parts Sabotaged . | . . . . Parts Stolen . | . . . . Parts Stripped . | . . . . Power Chain Reactions 2 | . 1 . 1 Alert | -11 -10 -10 -9 ------- Run | Yrd Mat Min Mat Peak Influence 317 | 25 317 70 45 Initial 70 | . 16 70 . Average 89 | 3 159 36 6 Maximum Alert Level 1 | . 1 . . Low Security (%) 93 | 100 85 100 100 Level 1 6 | . 14 . . Level 2 . | . . . . Level 3 . | . . . . Level 4 . | . . . . Level 5 . | . . . . High Security . | . . . . Max Security . | . . . . Squads Dispatched 4 | . 2 . 2 Investigation 3 | . 1 . 2 Extermination . | . . . . Reinforcement 1 | . 1 . . Assault . | . . . . Garrison . | . . . . Intercept . | . . . . Searches Triggered . | . . . . Construction Impeded . | . . . . Haulers Reinforced . | . . . . Active Scanning Responses . | . . . . Cargo Convoy Interrupts . | . . . . Stealth | -11 -10 -10 -9 --------- Run | Yrd Mat Min Mat Distress Signals 2 | . . . 2 Communications Jammed . | . . . . Distress Signals . | . . . . Times Spotted 45 | 1 29 2 13 Peak Tracking Total 9 | 1 5 2 9 Tactical Retreats 4 | . 2 . 2 Traps | -11 -10 -10 -9 ------- Run | Yrd Mat Min Mat Traps Triggered 2 | . 2 . . Indirectly . | . . . . Trap Hack Attempts . | . . . . Triggered . | . . . . Disarmed . | . . . . Reprogrammed . | . . . . Reused . | . . . . Traps Extracted . | . . . . Installed . | . . . . Triggered . | . . . . Machines | -11 -10 -10 -9 ---------- Run | Yrd Mat Min Mat Machines Disabled 3 | . 3 . . Max in Single Turn 1 | . 1 . . Machines Repaired . | . . . . Machines Dismantled . | . . . . Machines Sabotaged . | . . . . Overloaded Fab Kills . | . . . . Hacking | -11 -10 -10 -9 --------- Run | Yrd Mat Min Mat Machines Accessed 8 | . 5 1 2 Terminals 3 | . 3 . . Fabricators . | . . . . Repair Stations 2 | . 1 . 1 Recycling Units 1 | . 1 . . Scanalyzers 1 | . . . 1 Garrison Access . | . . . . Total Hacks 26 | . 15 1 10 Successful 16 | . 8 1 7 Failed 10 | . 7 . 3 Catastrophic . | . . . . Database Lockouts . | . . . . Manual . | . . . . Terminals 9 | . 9 . . Fabricators . | . . . . Repair Stations 9 | . 3 . 6 Recycling Units 3 | . 3 . . Scanalyzers 4 | . . . 4 Garrison Access . | . . . . Terminal Hacks 4 | . 3 1 . Prototype ID Bank 1 | . 1 . . Open Door 1 | . . 1 . Maintenance Status 1 | . 1 . . Hauler Manifests 1 | . 1 . . Fabricator Hacks . | . . . . Repair Station Hacks 6 | . 2 . 4 Scan Component 4 | . 2 . 2 Repair 2 | . . . 2 Recycling Unit Hacks 3 | . 3 . . Process 1 | . 1 . . Report Inventory 1 | . 1 . . Retrieve Matter 1 | . 1 . . Scanalyzer 3 | . . . 3 Insert Component 3 | . . . 3 Garrison Access Hacks . | . . . . Unauthorized Hacks . | . . . . Terminals . | . . . . Fabricators . | . . . . Repair Stations . | . . . . Recycling Units . | . . . . Scanalyzers . | . . . . Garrison Access . | . . . . Data Cores Recovered . | . . . . Used . | . . . . Hacking Detections 6 | . 4 . 2 Full Trace Events 4 | . 2 . 2 Feedback Events 1 | . 1 . . Corruption 1 | . 1 . . Feedback Blocked . | . . . . Robot Schematics Acquired . | . . . . Robots Built . | . . . . Authchips . | . . . . Time . | . . . . Total Robot Build Rating . | . . . . Part Schematics Acquired . | . . . . Parts Built . | . . . . Authchips . | . . . . Time . | . . . . Total Part Build Rating . | . . . . Parts Repaired 2 | . . . 2 Time 52 | . . . 52 Parts Recycled . | . . . . Recycled Matter 255 | . 255 . . Retrieved Matter 365 | . 365 . . Retrieved Components . | . . . . Parts Scanalyzed . | . . . . Part Schematics Acquired . | . . . . Parts Damaged . | . . . . Bothacking | -11 -10 -10 -9 ------------ Run | Yrd Mat Min Mat Used RIF Installer . | . . . . Robots Hacked . | . . . . Non-combat . | . . . . Combat . | . . . . Robot Hacks Applied . | . . . . Relay Couplers Released . | . . . . Fabnet Peak Effective % . | . . . . Robots Rewired . | . . . . Allies Hacked . | . . . . Hacks Repelled . | . . . . Allies | -11 -10 -10 -9 -------- Run | Yrd Mat Min Mat Total Allies . | . . . . Largest Group . | . . . . Highest-Rated Group . | . . . . Highest-Rated Ally . | . . . . Total Orders 1 | . . . 1 EXPLORE 1 | . . . 1 Ally Attacks . | . . . . Total Damage . | . . . . Kills . | . . . . Allies Corrupted . | . . . . Allies Melted . | . . . . Intel | -11 -10 -10 -9 ------- Run | Yrd Mat Min Mat Robot Analysis Total . | . . . . Derelict Logs Recovered 2 | . . 2 . Drone Launches 1 | . . . 1 Drone Recoveries 1 | . . . 1 Exploration | -11 -10 -10 -9 ------------- Run | Yrd Mat Min Mat Turns Passed 2102 | 143 992 755 212 Spaces Moved 1172 | 103 411 578 80 Core 30 | 20 . . 10 Treads . | . . . . Legs 1142 | 83 411 578 70 Wheels . | . . . . Hover . | . . . . Flight . | . . . . Fastest Speed 50 | 50 120 120 50 Average Speed 120 | 106 122 120 131 Slowest Speed 190 | 120 190 120 190 Overloaded Moves . | . . . . Propulsion Burnouts . | . . . . Robots Hopped . | . . . . Cave-ins Triggered . | . . . . Exploration Rate (%) 44 | 5 64 93 16 Regions Visited 3 Branch Regions 1 Pre-discovered Areas 3 | . . 3 . Known Exits Taken . | . . . . Unknown Exits Taken 3 | 1 1 1 . Scrap Searched 3 | . . 3 . Spaces Dug . | . . . . Terrain Destroyed 10 | . 3 . 7 Melee . | . . . . Projectile 1 | . 1 . . AOE 9 | . 2 . 7 Terrain Rammed . | . . . . Walls Destroyed . | . . . . Machines Disabled . | . . . . Actions | -11 -10 -10 -9 --------- Run | Yrd Mat Min Mat Total 1690 | 123 780 633 154 Wait 335 | . 265 38 32 Move 1169 | 102 410 577 80 Hop . | . . . . Pick Up 45 | 6 25 8 6 Fast Attach . | . . . . Attach 26 | 5 14 . 7 Detach . | . . . . Swap 13 | . 6 4 3 Drop 8 | . 4 1 3 Fire 76 | 6 54 2 14 Melee . | . . . . Ram 5 | . . . 5 Kick 13 | 4 2 3 4 Crush . | . . . . Escape Stasis . | . . . . Rewire . | . . . . Trap . | . . . . Miscellaneous . | . . . . Route ------- -11/Scrapyard -10/Materials (discovered 2 exits: *Mat / *Min) -10/Mines (discovered 2 exits: *Mat x2) -9/Materials History --------- Turn | Location | Event 2 | -11/Scrapyard | Met Revision 17 119 | -11/Scrapyard | Discovered new exit (range 8) 144 | -11/Scrapyard | Entered Materials 212 | -10/Materials | Discovered new exit (range 15) 300 | -10/Materials | Build established: Mutant 468 | -10/Materials | Core integrity fell below 50% 500 | -10/Materials | Lost 4 parts (1p1n2w) 554 | -10/Materials | Core integrity fell below 20% 593 | -10/Materials | Discovered new exit (range 15) 970 | -10/Materials | Build established: Scavenger-Mutant 1136 | -10/Materials | Entered Mines 1169 | -10/Mines | Met a Derelict bent on vengeance 1206 | -10/Mines | Learned location of Storage (-8) 1327 | -10/Mines | Discovered new exit (range 7) 1540 | -10/Mines | Discovered new exit (range 7) 1746 | -10/Mines | Found the Drone Emporium 1764 | -10/Mines | Learned location of Recycling (-8) 1768 | -10/Mines | Found Prototype Device 1769 | -10/Mines | Identified Sensor Drone Bay 1891 | -10/Mines | Entered Materials 1891 | -9/Materials | Evolved 2 slots: Propulsion x1, Utility x1 1931 | -9/Materials | Repaired Aluminum Leg 1957 | -9/Materials | Repaired EM Pulse Gun 2041 | -9/Materials | System corruption reached 10% 2097 | -9/Materials | Core integrity fell below 50% 2102 | -9/Materials | Core integrity fell below 20% 2103 | -9/Materials | Destroyed by B-36 Bruiser with Hammer Last Messages --------------- U-05 Engineer builds a Wall. U-05 Engineer lays Concrete. 6IB7EMU GPZEDTY2HGSUMSQ|V%FGTW U-05 Engineer builds a Wall. W-16 Scout sends out distress signal. K-01 Serf collects debris. Aluminum Leg destroyed. Connecting with Scanalyzer... >>Insert(Sensor Drone Bay) Scanning Sensor Drone Bay... >>Insert(Sensor Drone Bay) Scanning Sensor Drone Bay... >>Insert(Huge Storage Unit) Scanning Huge Storage Unit... Ready to analyze. ALERT: Suspicious activity at Scanalyzer M001. Dispatching Investigation squad. Slammed into Y-45 Defender. System corrupted: Energy discharge (-21). Slammed into Y-45 Defender. Map ----- +----------------------------------------------------+ | ???????????????????????????????# ????????????????? | | ???????????????????????????????# ???????????????? | | ???????????????????????????????# ??????????????? | | ???????????????????????????????# ###+########### | | ???????????????????????????????# # | | ???????????????????????????????# | | ??????????????????????? ???# # | | ??????????????????????? ##?#######/########+## | | ??????????????????????? # ## #! | | ??????????????????????? # """ ## # """ | | ???????????????????????# ## """ ## [ # [ """ | | ???????????????????????# ## """ ## # """ | | ??????????????"??#?????# ## ## # | | ???????#? ?? ????##????# ## ## ###+##### | | ?????????? ? ??? ?##???# ## ## #?# #???? | | ???????#???????? ??????# ## [[ ####+##### #???? | | ???????#? ?????????#??# ##[ [[ ## # #???? | | ?????????????"?? #?????# ## [[ ## " # #???? | | ????#?##?????????#?#???# ## ## """ # #???? | | ???#???###?#???#?####### ####+#### """ # #???? | | ??#????????#?????# # """ + #???? | | ??? ???#?#??###??# / "" # #???? | | ???? #??#?????#?# # """ # #???? | | ??????#???#?###### ###+########### "" + ???? | | ??? ? ############ # g #???# "" # ??? | | ??? ?# ! # # b@ #???# " # ?? | | ???? ??# !=# # s Y g #???# # ?? | | ??????# # # """ ss #???######### ? ? | | ???? ??# / # """s"" #???????????? ? | | ???????# # # """ """ #???????????? ? | | ???#?#?# # # """ S" #????????????##+?## | | ????##?# # # #?????????????????? | | ???????# # ##### #####?????????????????? | | ????#?############ ########????????????????????? | | ??#??##??######### # #??#?????????????????? | | ???????#?## # # """ #????????????????????? | | ??????#???# """ # # """ #????????????????????? | | ??????????# "R + + """ #????????????????????? | | ?????????## """ # # #????????????????????? | | ??????????# # # #????????????????????? | | ??????????# # ########????????????????????? | | ??????????############???????????????????????????? | | ???????#????????????#?#??????????????????????????? | | ?????????????????????????????????????????????????? | | ??????????????????#??????????#???????????????????? | | ?????????????????????????????????????????????????? | | ?????????????##??????????????????????????????????? | | | | | | | +----------------------------------------------------+ Best States ------------- Heat Dissipation 28 Energy Generation 10 Energy Capacity 500 Matter Stores 300 Matter Capacity 300 Sight Range 16 Terrain Scan Range 14 Terrain Scan Density 85 Evasion (%) 55 Item Schematics ----------------- None Robot Schematics ------------------ None Fabricated ------------ Nothing Alien Tech Used ----------------- None Achievements -------------- Part-time Mechanic Shopping List System Compromised Challenges ------------ None Game ------ Seed MasterDynamicReactor Manual? 0 Play Time 00:47:41 Cumulative 1.9 hours Start 2024.04.01 @ 09:39:06 End 2024.04.01 @ 10:34:09 Sessions 1 Manual Loads 0 Difficulty Rogue Special Mode None Game No. 2 Rogue 2 Adventurer 0 Explorer 0 Win Type - Total 0 Types 0/0/0/0/0/0/0/0/0 Lore% 0 Gallery% 3 Achievement% 4 Wizard Run 0 Options --------- Layout 1 ASCII 0 Keyboard 1 Movement Numpad Keybinds 0 Fullscreen 1 Font 24/Smallcaps Map View 50x35 Zoom Use 0% Tactical HUD 0 Map Filters NONE Filters NONE Steam 1 RUN: 6a598197-a7f4-4edd-8b96-b722ad8749d3